[Event "Titled Tuesday Blitz November 01 Late 2022"]
[White "Faizrakhmanov, Ramil"]
[Black "Aghasiyev, Kamal"]
[WhiteFideId "24103209"]
[BlackFideId "13402854"]
[WhiteElo "2421"]
[BlackElo "2341"]
[Result "0-1"]
[Round "08"]
[TimeControl "180+1"]
[Date "2022.11.01"]
[WhiteClock "0:00:09"]
[BlackClock "0:00:06"]

1. d4 {[%clk 0:03:00]}  d5 {[%clk 0:02:59]} 2. c4 {[%clk 0:03:01]}  e6 {[%clk 0:02:59]} 3. Nf3 {[%clk 0:03:02]}  Nf6 {[%clk 0:02:57]} 4. Nc3 {[%clk 0:03:02]}  Be7 {[%clk 0:02:56]} 5. Bf4 {[%clk 0:03:02]}  O-O {[%clk 0:02:55]} 6. e3 {[%clk 0:03:03]}  b6 {[%clk 0:02:31]} 7. Be2 {[%clk 0:03:02]}  dxc4 {[%clk 0:02:03]} 8. Bxc4 {[%clk 0:03:02]}  Ba6 {[%clk 0:01:54]} 9. Qe2 {[%clk 0:03:01]}  Bxc4 {[%clk 0:01:51]} 10. Qxc4 {[%clk 0:03:01]}  c5 {[%clk 0:01:49]} 11. dxc5 {[%clk 0:02:59]}  bxc5 {[%clk 0:01:46]} 12. O-O {[%clk 0:02:59]}  Nc6 {[%clk 0:01:43]} 13. Rfd1 {[%clk 0:02:55]}  Qb6 {[%clk 0:01:40]} 14. Na4 {[%clk 0:02:54]}  Qb4 {[%clk 0:01:38]} 15. Rac1 {[%clk 0:02:49]}  Rfc8 {[%clk 0:01:19]} 16. a3 {[%clk 0:02:30]}  Qxc4 {[%clk 0:01:12]} 17. Rxc4 {[%clk 0:02:31]}  Nd5 {[%clk 0:01:11]} 18. Rc2 {[%clk 0:02:20]}  Nxf4 {[%clk 0:01:08]} 19. exf4 {[%clk 0:02:21]}  Nd4 {[%clk 0:01:06]} 20. Nxd4 {[%clk 0:02:06]}  cxd4 {[%clk 0:01:07]} 21. Rxc8+ {[%clk 0:02:06]}  Rxc8 {[%clk 0:01:06]} 22. g3 {[%clk 0:02:06]}  Bf6 {[%clk 0:00:43]} 23. b4 {[%clk 0:02:03]}  Rc2 {[%clk 0:00:39]} 24. Nc5 {[%clk 0:02:00]}  Ra2 {[%clk 0:00:33]} 25. Rd3 {[%clk 0:01:58]}  g6 {[%clk 0:00:25]} 26. Nd7 {[%clk 0:01:49]}  Bg7 {[%clk 0:00:22]} 27. Ne5 {[%clk 0:01:46]}  f6 {[%clk 0:00:22]} 28. Nc6 {[%clk 0:01:43]}  e5 {[%clk 0:00:22]} 29. Nxa7 {[%clk 0:01:40]}  Kf7 {[%clk 0:00:22]} 30. b5 {[%clk 0:01:28]}  Rb2 {[%clk 0:00:22]} 31. a4 {[%clk 0:01:24]}  Ke6 {[%clk 0:00:22]} 32. a5 {[%clk 0:01:23]}  Kd5 {[%clk 0:00:22]} 33. a6 {[%clk 0:01:20]}  e4 {[%clk 0:00:21]} 34. Rd1 {[%clk 0:01:20]}  d3 {[%clk 0:00:21]} 35. Nc8 {[%clk 0:01:12]}  f5 {[%clk 0:00:19]} 36. a7 {[%clk 0:01:06]}  Ra2 {[%clk 0:00:16]} 37. Nb6+ {[%clk 0:00:56]}  Kc5 {[%clk 0:00:15]} 38. a8=Q {[%clk 0:00:56]}  Rxa8 {[%clk 0:00:15]} 39. Nxa8 {[%clk 0:00:57]}  Kxb5 {[%clk 0:00:15]} 40. Nc7+ {[%clk 0:00:54]}  Kc4 {[%clk 0:00:14]} 41. Ne6 {[%clk 0:00:55]}  Bb2 {[%clk 0:00:12]} 42. Kf1 {[%clk 0:00:38]}  Kb3 {[%clk 0:00:12]} 43. Nf8 {[%clk 0:00:20]}  Kc2 {[%clk 0:00:10]} 44. Re1 {[%clk 0:00:17]}  Bc3 {[%clk 0:00:09]} 45. Re3 {[%clk 0:00:15]}  Bd2 {[%clk 0:00:08]} 46. Ne6 {[%clk 0:00:08]}  Bxe3 {[%clk 0:00:07]} 47. fxe3 {[%clk 0:00:09]}  d2 {[%clk 0:00:06]} 48. Nd4+ {[%clk 0:00:09]}  Kd3 {[%clk 0:00:06]} 0-1


[Site "https://www.chess.com"]

[Event "Titled Tuesday Blitz November 01 Late 2022"]
[White "Fernandez Siles, Luis"]
[Black "Martinez Molina, Carlos Alberto"]
[WhiteFideId "2209420"]
[BlackFideId "5122708"]
[WhiteElo "2186"]
[BlackElo "2212"]
[Result "0-1"]
[Round "08"]
[TimeControl "180+1"]
[Date "2022.11.02"]
[WhiteClock "0:00:23"]
[BlackClock "0:00:49"]

1. e4 {[%clk 0:03:00]}  c5 {[%clk 0:02:58]} 2. Nf3 {[%clk 0:03:00]}  e6 {[%clk 0:02:58]} 3. c3 {[%clk 0:03:00]}  Nf6 {[%clk 0:02:58]} 4. e5 {[%clk 0:03:00]}  Nd5 {[%clk 0:02:58]} 5. Bc4 {[%clk 0:03:00]}  d6 {[%clk 0:02:58]} 6. d4 {[%clk 0:02:59]}  cxd4 {[%clk 0:02:53]} 7. cxd4 {[%clk 0:02:59]}  Be7 {[%clk 0:02:54]} 8. O-O {[%clk 0:02:58]}  O-O {[%clk 0:02:53]} 9. Qe2 {[%clk 0:02:58]}  Nd7 {[%clk 0:02:52]} 10. Qe4 {[%clk 0:02:41]}  Qc7 {[%clk 0:02:25]} 11. Bd3 {[%clk 0:02:31]}  f5 {[%clk 0:02:24]} 12. exf6 {[%clk 0:02:30]}  N7xf6 {[%clk 0:02:23]} 13. Qh4 {[%clk 0:02:28]}  Nb4 {[%clk 0:02:07]} 14. Be4 {[%clk 0:01:16]}  Nxe4 {[%clk 0:02:03]} 15. Qxe4 {[%clk 0:01:15]}  Nc2 {[%clk 0:02:02]} 16. Na3 {[%clk 0:01:09]}  Nxa1 {[%clk 0:02:00]} 17. Be3 {[%clk 0:01:05]}  Qc6 {[%clk 0:01:47]} 18. Qb1 {[%clk 0:01:03]}  e5 {[%clk 0:01:35]} 19. Qxa1 {[%clk 0:01:00]}  e4 {[%clk 0:01:23]} 20. Rc1 {[%clk 0:00:57]}  Qd5 {[%clk 0:01:17]} 21. Nd2 {[%clk 0:00:54]}  Bf5 {[%clk 0:01:09]} 22. Rc7 {[%clk 0:00:54]}  Bf6 {[%clk 0:01:05]} 23. Nb3 {[%clk 0:00:25]}  Rac8 {[%clk 0:01:02]} 24. Qc1 {[%clk 0:00:22]}  Rxc7 {[%clk 0:00:51]} 25. Qxc7 {[%clk 0:00:23]}  Rc8 {[%clk 0:00:49]} 0-1


[Site "https://www.chess.com"]

[Event "Titled Tuesday Blitz November 01 Late 2022"]
[White "Firouzja, Alireza"]
[Black "Muradli, Mahammad"]
[WhiteFideId "12573981"]
[BlackFideId "13409301"]
[WhiteElo "2903"]
[BlackElo "2611"]
[Result "1-0"]
[Round "08"]
[TimeControl "180+1"]
[Date "2022.11.01"]
[WhiteClock "0:00:13"]
[BlackClock "0:00:01"]

1. e4 {[%clk 0:02:56]}  c5 {[%clk 0:02:59]} 2. Nf3 {[%clk 0:02:57]}  d6 {[%clk 0:02:59]} 3. d4 {[%clk 0:02:57]}  cxd4 {[%clk 0:03:00]} 4. Nxd4 {[%clk 0:02:57]}  Nf6 {[%clk 0:03:01]} 5. Nc3 {[%clk 0:02:58]}  a6 {[%clk 0:03:01]} 6. Qf3 {[%clk 0:02:52]}  g6 {[%clk 0:03:00]} 7. h3 {[%clk 0:02:52]}  Bg7 {[%clk 0:03:00]} 8. Be3 {[%clk 0:02:53]}  Bd7 {[%clk 0:02:56]} 9. O-O-O {[%clk 0:02:52]}  Nc6 {[%clk 0:02:56]} 10. g4 {[%clk 0:02:53]}  Rc8 {[%clk 0:02:38]} 11. Nxc6 {[%clk 0:01:55]}  Bxc6 {[%clk 0:02:38]} 12. Bd4 {[%clk 0:01:53]}  Qa5 {[%clk 0:02:25]} 13. Kb1 {[%clk 0:01:47]}  O-O {[%clk 0:02:07]} 14. Qe3 {[%clk 0:01:35]}  Qc7 {[%clk 0:01:29]} 15. g5 {[%clk 0:01:27]}  Nh5 {[%clk 0:00:53]} 16. Be2 {[%clk 0:01:24]}  Bxd4 {[%clk 0:00:50]} 17. Rxd4 {[%clk 0:01:25]}  e5 {[%clk 0:00:50]} 18. Rd2 {[%clk 0:01:21]}  Nf4 {[%clk 0:00:50]} 19. Bg4 {[%clk 0:01:22]}  Rcd8 {[%clk 0:00:47]} 20. Rhd1 {[%clk 0:01:21]}  b5 {[%clk 0:00:42]} 21. h4 {[%clk 0:01:20]}  f6 {[%clk 0:00:29]} 22. Ne2 {[%clk 0:01:15]}  fxg5 {[%clk 0:00:28]} 23. hxg5 {[%clk 0:01:16]}  Nxe2 {[%clk 0:00:23]} 24. Bxe2 {[%clk 0:01:16]}  Rf4 {[%clk 0:00:22]} 25. f3 {[%clk 0:01:16]}  Be8 {[%clk 0:00:15]} 26. c4 {[%clk 0:01:16]}  bxc4 {[%clk 0:00:10]} 27. Qa3 {[%clk 0:01:13]}  Qe7 {[%clk 0:00:05]} 28. Bxc4+ {[%clk 0:01:12]}  Bf7 {[%clk 0:00:03]} 29. Bxa6 {[%clk 0:01:08]}  Qxg5 {[%clk 0:00:02]} 30. Be2 {[%clk 0:01:05]}  h5 {[%clk 0:00:02]} 31. Rxd6 {[%clk 0:01:00]}  Rxd6 {[%clk 0:00:03]} 32. Qxd6 {[%clk 0:01:00]}  h4 {[%clk 0:00:03]} 33. a4 {[%clk 0:01:00]}  h3 {[%clk 0:00:03]} 34. a5 {[%clk 0:01:01]}  h2 {[%clk 0:00:02]} 35. Qb8+ {[%clk 0:00:54]}  Kg7 {[%clk 0:00:02]} 36. a6 {[%clk 0:00:55]}  Qg1 {[%clk 0:00:02]} 37. Qxe5+ {[%clk 0:00:55]}  Rf6 {[%clk 0:00:02]} 38. Kc2 {[%clk 0:00:19]}  h1=Q {[%clk 0:00:03]} 39. Rxg1 {[%clk 0:00:20]}  Qxg1 {[%clk 0:00:04]} 40. b4 {[%clk 0:00:19]}  Qb6 {[%clk 0:00:04]} 41. b5 {[%clk 0:00:19]}  Kg8 {[%clk 0:00:04]} 42. a7 {[%clk 0:00:17]}  Qxa7 {[%clk 0:00:03]} 43. Qxf6 {[%clk 0:00:18]}  Qa2+ {[%clk 0:00:02]} 44. Qb2 {[%clk 0:00:18]}  Qa4+ {[%clk 0:00:03]} 45. Kd2 {[%clk 0:00:18]}  Qa5+ {[%clk 0:00:03]} 46. Ke3 {[%clk 0:00:18]}  Qb6+ {[%clk 0:00:02]} 47. Qd4 {[%clk 0:00:19]}  Qc7 {[%clk 0:00:01]} 48. b6 {[%clk 0:00:18]}  Qc1+ {[%clk 0:00:02]} 49. Kf2 {[%clk 0:00:19]}  Qh1 {[%clk 0:00:02]} 50. Qd8+ {[%clk 0:00:17]}  Kg7 {[%clk 0:00:02]} 51. Qd4+ {[%clk 0:00:17]}  Kg8 {[%clk 0:00:01]} 52. b7 {[%clk 0:00:17]}  Qh2+ {[%clk 0:00:02]} 53. Ke1 {[%clk 0:00:17]}  Qc7 {[%clk 0:00:02]} 54. Qb4 {[%clk 0:00:15]}  Qb8 {[%clk 0:00:02]} 55. Kf2 {[%clk 0:00:13]}  g5 {[%clk 0:00:02]} 56. e5 {[%clk 0:00:13]}  Be6 {[%clk 0:00:01]} 57. Qd6 {[%clk 0:00:13]}  Qa7+ {[%clk 0:00:01]} 58. Kg2 {[%clk 0:00:13]} 1-0


[Site "https://www.chess.com"]

[Event "Titled Tuesday Blitz November 01 Late 2022"]
[White "Gaehwiler, Gabriel"]
[Black "Burke, Paul"]
[WhiteFideId "1314530"]
[BlackFideId "2605767"]
[WhiteElo "2418"]
[BlackElo "1874"]
[Result "1-0"]
[Round "08"]
[TimeControl "180+1"]
[Date "2022.11.02"]
[WhiteClock "0:03:08"]
[BlackClock "0:02:14"]

1. d4 {[%clk 0:03:00]}  Nf6 {[%clk 0:02:58]} 2. c3 {[%clk 0:03:01]}  a6 {[%clk 0:02:54]} 3. Nf3 {[%clk 0:03:02]}  g6 {[%clk 0:02:54]} 4. Nbd2 {[%clk 0:03:03]}  Bg7 {[%clk 0:02:54]} 5. g3 {[%clk 0:03:04]}  b6 {[%clk 0:02:53]} 6. Bg2 {[%clk 0:03:05]}  Bb7 {[%clk 0:02:54]} 7. O-O {[%clk 0:03:06]}  h6 {[%clk 0:02:54]} 8. Re1 {[%clk 0:03:06]}  d6 {[%clk 0:02:53]} 9. e4 {[%clk 0:03:07]}  Nbd7 {[%clk 0:02:53]} 10. e5 {[%clk 0:03:07]}  Nd5 {[%clk 0:02:49]} 11. Ne4 {[%clk 0:03:07]}  Rb8 {[%clk 0:02:42]} 12. exd6 {[%clk 0:03:07]}  cxd6 {[%clk 0:02:41]} 13. Nxd6+ {[%clk 0:03:07]}  Kf8 {[%clk 0:02:38]} 14. Nxb7 {[%clk 0:03:08]}  Rxb7 {[%clk 0:02:38]} 15. Qe2 {[%clk 0:03:08]}  e6 {[%clk 0:02:36]} 16. Bd2 {[%clk 0:03:08]}  Rb8 {[%clk 0:02:35]} 17. Rad1 {[%clk 0:03:09]}  Kg8 {[%clk 0:02:26]} 18. c4 {[%clk 0:03:09]}  N5f6 {[%clk 0:02:25]} 19. Bc3 {[%clk 0:03:08]}  Kh7 {[%clk 0:02:24]} 20. Ne5 {[%clk 0:03:08]}  Nxe5 {[%clk 0:02:23]} 21. dxe5 {[%clk 0:03:09]}  Nd7 {[%clk 0:02:20]} 22. Qd2 {[%clk 0:03:08]}  Rf8 {[%clk 0:02:14]} 23. Qxd7 {[%clk 0:03:08]} 1-0


[Site "https://www.chess.com"]

[Event "Titled Tuesday Blitz November 01 Late 2022"]
[White "Galchenko, Matvey"]
[Black "Jobava, Baadur"]
[WhiteFideId "24175480"]
[BlackFideId "13601520"]
[WhiteElo "2423"]
[BlackElo "2582"]
[Result "0-1"]
[Round "08"]
[TimeControl "180+1"]
[Date "2022.11.01"]
[WhiteClock "0:01:00"]
[BlackClock "0:01:27"]

1. f4 {[%clk 0:02:53]}  b6 {[%clk 0:02:59]} 2. Nf3 {[%clk 0:02:53]}  Bb7 {[%clk 0:03:00]} 3. g3 {[%clk 0:02:53]}  Bxf3 {[%clk 0:02:59]} 4. exf3 {[%clk 0:02:54]}  c5 {[%clk 0:02:59]} 5. d4 {[%clk 0:02:55]}  cxd4 {[%clk 0:02:59]} 6. Qxd4 {[%clk 0:02:56]}  Nc6 {[%clk 0:03:00]} 7. Qa4 {[%clk 0:02:54]}  g6 {[%clk 0:02:55]} 8. c3 {[%clk 0:02:54]}  Bg7 {[%clk 0:02:55]} 9. Bh3 {[%clk 0:02:53]}  e6 {[%clk 0:02:55]} 10. O-O {[%clk 0:02:52]}  Nge7 {[%clk 0:02:55]} 11. Be3 {[%clk 0:02:52]}  O-O {[%clk 0:02:55]} 12. Nd2 {[%clk 0:02:53]}  d5 {[%clk 0:02:55]} 13. Rad1 {[%clk 0:02:53]}  b5 {[%clk 0:02:50]} 14. Qa6 {[%clk 0:02:39]}  Rb8 {[%clk 0:02:47]} 15. Nb3 {[%clk 0:02:33]}  Qc8 {[%clk 0:02:45]} 16. Qxc8 {[%clk 0:02:31]}  Rfxc8 {[%clk 0:02:45]} 17. a3 {[%clk 0:02:31]}  a5 {[%clk 0:02:44]} 18. Rf2 {[%clk 0:02:21]}  b4 {[%clk 0:02:44]} 19. cxb4 {[%clk 0:02:21]}  axb4 {[%clk 0:02:45]} 20. a4 {[%clk 0:02:22]}  Ra8 {[%clk 0:02:42]} 21. Ra1 {[%clk 0:02:16]}  Na5 {[%clk 0:02:36]} 22. Nxa5 {[%clk 0:02:16]}  Rxa5 {[%clk 0:02:37]} 23. Bb6 {[%clk 0:02:16]}  Ra6 {[%clk 0:02:34]} 24. a5 {[%clk 0:02:17]}  Rb8 {[%clk 0:02:19]} 25. Rd1 {[%clk 0:02:10]}  Nc6 {[%clk 0:02:13]} 26. Bc7 {[%clk 0:01:40]}  Rb7 {[%clk 0:02:06]} 27. Bf1 {[%clk 0:01:41]}  Ra8 {[%clk 0:02:00]} 28. Bb6 {[%clk 0:01:40]}  Nxa5 {[%clk 0:01:59]} 29. Bc5 {[%clk 0:01:35]}  Rc8 {[%clk 0:01:51]} 30. Be3 {[%clk 0:01:28]}  Nc4 {[%clk 0:01:49]} 31. Bc1 {[%clk 0:01:29]}  b3 {[%clk 0:01:48]} 32. g4 {[%clk 0:01:29]}  Ra7 {[%clk 0:01:41]} 33. f5 {[%clk 0:01:17]}  Ra1 {[%clk 0:01:39]} 34. fxe6 {[%clk 0:01:18]}  fxe6 {[%clk 0:01:40]} 35. Bxc4 {[%clk 0:01:09]}  Rxc4 {[%clk 0:01:35]} 36. Rff1 {[%clk 0:01:09]}  Rc2 {[%clk 0:01:31]} 37. Bg5 {[%clk 0:01:02]}  Rxd1 {[%clk 0:01:32]} 38. Rxd1 {[%clk 0:01:02]}  Bxb2 {[%clk 0:01:31]} 39. Rb1 {[%clk 0:01:01]}  Bd4+ {[%clk 0:01:31]} 40. Kh1 {[%clk 0:01:02]}  b2 {[%clk 0:01:31]} 41. Rd1 {[%clk 0:01:02]}  e5 {[%clk 0:01:28]} 42. h4 {[%clk 0:01:01]}  Kf7 {[%clk 0:01:28]} 43. Rf1 {[%clk 0:01:00]}  Ke6 {[%clk 0:01:28]} 44. Rd1 {[%clk 0:01:00]}  Rf2 {[%clk 0:01:27]} 0-1


[Site "https://www.chess.com"]

[Event "Titled Tuesday Blitz November 01 Late 2022"]
[White "Goncalves, Davi Sulzbacher"]
[Black "Postny, Evgeny"]
[WhiteFideId "2154510"]
[BlackFideId "2804344"]
[WhiteElo "2182"]
[BlackElo "2473"]
[Result "0-1"]
[Round "08"]
[TimeControl "180+1"]
[Date "2022.11.02"]
[WhiteClock "0:00:04"]
[BlackClock "0:01:03"]

1. d4 {[%clk 0:03:00]}  Nf6 {[%clk 0:02:59]} 2. c4 {[%clk 0:03:01]}  e5 {[%clk 0:02:59]} 3. dxe5 {[%clk 0:03:00]}  Ne4 {[%clk 0:03:00]} 4. Nf3 {[%clk 0:02:53]}  Nc6 {[%clk 0:03:00]} 5. e3 {[%clk 0:02:45]}  d6 {[%clk 0:02:59]} 6. exd6 {[%clk 0:02:44]}  Bxd6 {[%clk 0:03:00]} 7. Be2 {[%clk 0:02:36]}  Bf5 {[%clk 0:02:59]} 8. Nc3 {[%clk 0:02:18]}  Nxc3 {[%clk 0:02:51]} 9. bxc3 {[%clk 0:02:19]}  Qf6 {[%clk 0:02:49]} 10. Nd4 {[%clk 0:02:16]}  Bd7 {[%clk 0:02:45]} 11. Bg4 {[%clk 0:01:49]}  Bxg4 {[%clk 0:02:37]} 12. Qxg4 {[%clk 0:01:50]}  Ne5 {[%clk 0:02:37]} 13. Qf5 {[%clk 0:01:34]}  Qxf5 {[%clk 0:02:26]} 14. Nxf5 {[%clk 0:01:34]}  O-O {[%clk 0:02:10]} 15. Rb1 {[%clk 0:01:24]}  b6 {[%clk 0:02:05]} 16. Nxd6 {[%clk 0:01:21]}  cxd6 {[%clk 0:02:06]} 17. Ke2 {[%clk 0:01:19]}  Nxc4 {[%clk 0:02:04]} 18. Rd1 {[%clk 0:01:19]}  Rfc8 {[%clk 0:02:01]} 19. Rd4 {[%clk 0:01:11]}  Rc5 {[%clk 0:01:55]} 20. Bd2 {[%clk 0:00:46]}  Rac8 {[%clk 0:01:46]} 21. Rc1 {[%clk 0:00:37]}  f5 {[%clk 0:01:37]} 22. e4 {[%clk 0:00:25]}  Re8 {[%clk 0:01:35]} 23. f3 {[%clk 0:00:22]}  d5 {[%clk 0:01:32]} 24. Be3 {[%clk 0:00:16]}  dxe4 {[%clk 0:01:22]} 25. fxe4 {[%clk 0:00:17]}  Nxe3 {[%clk 0:01:17]} 26. Kxe3 {[%clk 0:00:15]}  Rce5 {[%clk 0:01:17]} 27. Kf4 {[%clk 0:00:12]}  Rxe4+ {[%clk 0:01:12]} 28. Rxe4 {[%clk 0:00:12]}  Rxe4+ {[%clk 0:01:13]} 29. Kf3 {[%clk 0:00:09]}  Ra4 {[%clk 0:01:06]} 30. Rc2 {[%clk 0:00:09]}  Kf7 {[%clk 0:01:07]} 31. c4 {[%clk 0:00:04]}  Kf6 {[%clk 0:01:05]} 32. c5 {[%clk 0:00:04]}  Ra3+ {[%clk 0:01:03]} 0-1


[Site "https://www.chess.com"]

[Event "Titled Tuesday Blitz November 01 Late 2022"]
[White "Gubajdullin, Alexei"]
[Black "Storey, Charles H"]
[WhiteFideId "4141202"]
[BlackFideId "406686"]
[WhiteElo "2200"]
[BlackElo "2252"]
[Result "1-0"]
[Round "08"]
[TimeControl "180+1"]
[Date "2022.11.02"]
[WhiteClock "0:01:12"]
[BlackClock "0:01:23"]

1. d4 {[%clk 0:03:00]}  g6 {[%clk 0:02:59]} 2. Nf3 {[%clk 0:02:59]}  Bg7 {[%clk 0:03:00]} 3. Bf4 {[%clk 0:02:59]}  c5 {[%clk 0:03:00]} 4. e3 {[%clk 0:02:59]}  Qb6 {[%clk 0:03:00]} 5. Nc3 {[%clk 0:02:57]}  d6 {[%clk 0:02:46]} 6. Nd5 {[%clk 0:02:48]}  Qa5+ {[%clk 0:02:45]} 7. c3 {[%clk 0:02:37]}  Be6 {[%clk 0:02:38]} 8. b4 {[%clk 0:02:35]}  Qd8 {[%clk 0:02:37]} 9. Bb5+ {[%clk 0:02:22]}  Nc6 {[%clk 0:02:21]} 10. dxc5 {[%clk 0:02:22]}  Bxd5 {[%clk 0:02:15]} 11. Qxd5 {[%clk 0:02:21]}  Bxc3+ {[%clk 0:02:13]} 12. Ke2 {[%clk 0:02:20]}  Nf6 {[%clk 0:02:07]} 13. Bxc6+ {[%clk 0:02:19]}  Kf8 {[%clk 0:02:08]} 14. Qb3 {[%clk 0:01:56]}  Bxa1 {[%clk 0:02:04]} 15. Bxb7 {[%clk 0:01:36]}  Rb8 {[%clk 0:01:57]} 16. c6 {[%clk 0:01:16]}  Be5 {[%clk 0:01:33]} 17. Nxe5 {[%clk 0:01:13]}  dxe5 {[%clk 0:01:33]} 18. Bxe5 {[%clk 0:01:13]}  Kg7 {[%clk 0:01:23]} 19. c7 {[%clk 0:01:12]} 1-0


[Site "https://www.chess.com"]

[Event "Titled Tuesday Blitz November 01 Late 2022"]
[White "Hajiyev, Kanan"]
[Black "Grot, Blazej"]
[WhiteFideId "13404148"]
[BlackFideId "21835845"]
[WhiteElo "2118"]
[BlackElo "1739"]
[Result "1/2-1/2"]
[Round "08"]
[TimeControl "180+1"]
[Date "2022.11.02"]
[WhiteClock "0:00:15"]
[BlackClock "0:00:06"]

1. d4 {[%clk 0:02:51]}  d6 {[%clk 0:02:58]} 2. Nf3 {[%clk 0:02:52]}  Bg4 {[%clk 0:02:57]} 3. g3 {[%clk 0:02:52]}  e6 {[%clk 0:02:57]} 4. h3 {[%clk 0:02:51]}  Bxf3 {[%clk 0:02:57]} 5. exf3 {[%clk 0:02:52]}  c6 {[%clk 0:02:57]} 6. Bg2 {[%clk 0:02:53]}  d5 {[%clk 0:02:57]} 7. O-O {[%clk 0:02:54]}  Nf6 {[%clk 0:02:57]} 8. c3 {[%clk 0:02:54]}  c5 {[%clk 0:02:57]} 9. f4 {[%clk 0:02:55]}  Nc6 {[%clk 0:02:56]} 10. dxc5 {[%clk 0:02:55]}  Bxc5 {[%clk 0:02:56]} 11. Nd2 {[%clk 0:02:55]}  O-O {[%clk 0:02:56]} 12. Nf3 {[%clk 0:02:55]}  Ne4 {[%clk 0:02:51]} 13. Nd4 {[%clk 0:02:46]}  Qb6 {[%clk 0:02:42]} 14. Bxe4 {[%clk 0:02:42]}  dxe4 {[%clk 0:02:36]} 15. Nxc6 {[%clk 0:02:36]}  Qxc6 {[%clk 0:02:37]} 16. Qe2 {[%clk 0:02:27]}  Rad8 {[%clk 0:02:35]} 17. Rd1 {[%clk 0:02:12]}  Rxd1+ {[%clk 0:02:26]} 18. Qxd1 {[%clk 0:02:10]}  Bb6 {[%clk 0:02:27]} 19. Qe2 {[%clk 0:01:54]}  Rd8 {[%clk 0:02:24]} 20. Be3 {[%clk 0:01:54]}  Bxe3 {[%clk 0:02:09]} 21. Qxe3 {[%clk 0:01:54]}  b6 {[%clk 0:02:09]} 22. Re1 {[%clk 0:01:53]}  f5 {[%clk 0:02:04]} 23. Qe2 {[%clk 0:01:41]}  Rd3 {[%clk 0:02:01]} 24. Qh5 {[%clk 0:01:35]}  Qd7 {[%clk 0:01:41]} 25. Kg2 {[%clk 0:01:31]}  g6 {[%clk 0:01:37]} 26. Qg5 {[%clk 0:01:16]}  Kg7 {[%clk 0:01:07]} 27. Re2 {[%clk 0:01:12]}  Qb7 {[%clk 0:01:00]} 28. Re3 {[%clk 0:00:52]}  Rd2 {[%clk 0:00:24]} 29. b4 {[%clk 0:00:52]}  Qd7 {[%clk 0:00:21]} 30. a4 {[%clk 0:00:50]}  a5 {[%clk 0:00:16]} 31. bxa5 {[%clk 0:00:45]}  bxa5 {[%clk 0:00:17]} 32. c4 {[%clk 0:00:45]}  Rc2 {[%clk 0:00:14]} 33. Rb3 {[%clk 0:00:32]}  Rxc4 {[%clk 0:00:14]} 34. Rb8 {[%clk 0:00:26]}  Rc8 {[%clk 0:00:06]} 35. Rxc8 {[%clk 0:00:25]}  Qxc8 {[%clk 0:00:06]} 36. Qe7+ {[%clk 0:00:25]}  Kg8 {[%clk 0:00:07]} 37. h4 {[%clk 0:00:24]}  h5 {[%clk 0:00:03]} 38. Kh2 {[%clk 0:00:21]}  e3 {[%clk 0:00:02]} 39. fxe3 {[%clk 0:00:18]}  Qc6 {[%clk 0:00:03]} 40. Qf6 {[%clk 0:00:11]}  Qc2+ {[%clk 0:00:02]} 41. Kh3 {[%clk 0:00:11]}  Qxa4 {[%clk 0:00:03]} 42. Qxg6+ {[%clk 0:00:11]}  Kf8 {[%clk 0:00:04]} 43. Qf6+ {[%clk 0:00:12]}  Ke8 {[%clk 0:00:03]} 44. Qxe6+ {[%clk 0:00:13]}  Kd8 {[%clk 0:00:04]} 45. Qd6+ {[%clk 0:00:13]}  Qd7 {[%clk 0:00:03]} 46. Qb8+ {[%clk 0:00:12]}  Ke7 {[%clk 0:00:02]} 47. Qe5+ {[%clk 0:00:11]}  Qe6 {[%clk 0:00:03]} 48. Qc7+ {[%clk 0:00:11]}  Kf6 {[%clk 0:00:03]} 49. Qxa5 {[%clk 0:00:09]}  Qxe3 {[%clk 0:00:03]} 50. Qa6+ {[%clk 0:00:08]}  Kf7 {[%clk 0:00:03]} 51. Qf1 {[%clk 0:00:09]}  Qe4 {[%clk 0:00:03]} 52. Qg2 {[%clk 0:00:09]}  Qb1 {[%clk 0:00:03]} 53. Kh2 {[%clk 0:00:10]}  Kg6 {[%clk 0:00:03]} 54. Qf2 {[%clk 0:00:10]}  Kf6 {[%clk 0:00:03]} 55. Kg2 {[%clk 0:00:11]}  Qe4+ {[%clk 0:00:03]} 56. Qf3 {[%clk 0:00:12]}  Qb1 {[%clk 0:00:03]} 57. Qf2 {[%clk 0:00:12]}  Qb7+ {[%clk 0:00:04]} 58. Kh2 {[%clk 0:00:13]}  Qb1 {[%clk 0:00:05]} 59. Qe2 {[%clk 0:00:13]}  Qb6 {[%clk 0:00:04]} 60. Qxh5 {[%clk 0:00:13]}  Qf2+ {[%clk 0:00:04]} 61. Kh3 {[%clk 0:00:13]}  Qf1+ {[%clk 0:00:04]} 62. Kh2 {[%clk 0:00:14]}  Qf2+ {[%clk 0:00:05]} 63. Kh1 {[%clk 0:00:15]}  Qf1+ {[%clk 0:00:05]} 64. Kh2 {[%clk 0:00:15]}  Qf2+ {[%clk 0:00:06]} 1/2-1/2


[Site "https://www.chess.com"]